fUST/lending_fUST_20240412
["ID","MTS","AMOUNT","RATE_DAILY","PERIOD"]
[322182383,1712866247090,-739.55,0.00028493,2]
[322182385,1712866247099,-687.87,0.00028493,2]
[322182387,1712866247108,-1518.13,0.00028493,2]
[322182388,1712866247117,-519.008041,0.00028493,2]
[322182390,1712866247127,-500.0,0.00028493,2]
[322182392,1712866247136,-519.008041,0.00028493,2]
[322182395,1712866247153,-500.0,0.00028493,2]
[322182398,1712866247172,-500.0,0.00028493,2]
[322182400,1712866247186,-500.0,0.00028493,2]
[322182403,1712866247203,-616.46,0.00028493,2]
[322182405,1712866247221,-500.0,0.00028493,2]
[322182408,1712866247234,-1501.94,0.00028493,2]
[322182410,1712866247250,-500.0,0.00028493,2]
[322182413,1712866247265,-509.58035143,0.00028493,2]
[322182415,1712866247281,-500.0,0.00028493,2]
[322182418,1712866247295,-506.99408068,0.00028493,2]
[322182420,1712866247313,-500.0,0.00028493,2]
[322182423,1712866247328,-3248.72,0.00028493,2]
[322182425,1712866247344,-151.0,0.00028493,2]
[322182428,1712866247361,-500.0,0.00028493,2]
[322182430,1712866247377,-500.0,0.00028493,2]
[322182433,1712866247393,-2751.89,0.00028493,2]
[322182435,1712866247404,-589.87,0.00028493,2]
[322182437,1712866247419,-544.06039581,0.00028493,2]
[322182440,1712866247433,-500.0,0.00028493,2]
[322182442,1712866247446,-1575.2,0.00028493,2]
[322182444,1712866247458,-833.045109,0.00028493,2]
[322182447,1712866247472,-833.045109,0.00028493,2]
[322182449,1712866247485,-866.95,0.00028493,2]
[322182451,1712866247498,-500.0,0.00028493,2]
[322182454,1712866247518,-956.41999002,0.00028493,2]
[322182457,1712866247538,-12684.60000998,0.00028493,2]
[322182459,1712866247552,-608.59,0.00028493,2]
[322182461,1712866247565,-500.0,0.00028493,2]
[322182463,1712866247577,-2619.68,0.00028493,2]
[322182466,1712866247590,-500.0,0.00028493,2]
[322182468,1712866247603,-192.084174,0.00028493,2]
[322182470,1712866247615,-192.084174,0.00028493,2]
[322182472,1712866247628,-500.0,0.00028493,2]
[322182475,1712866247640,-500.0,0.00028493,2]
[322182476,1712866247654,-500.0,0.00028493,2]
[322182477,1712866247664,-500.0,0.00028493,2]
[322182478,1712866247673,-151.0,0.00028493,2]
[322182479,1712866247682,-812.12,0.00028493,2]
[322182480,1712866247691,-506.03167518,0.00028493,2]
[322182481,1712866247700,-1119.38,0.00028493,2]
[322182482,1712866247708,-151.0,0.00028493,2]
[322182483,1712866247717,-2224.65708763,0.00028493,2]
[322182484,1712866247732,-11398.86291237,0.00028493,2]
[322182485,1712866247741,-3997.19,0.00028493,2]
[322182486,1712866247749,-151.0,0.00028493,2]
[322182487,1712866247759,-1141.42,0.00028493,2]
[322182488,1712866247768,-500.0,0.00028493,2]
[322182489,1712866247777,-1892.52,0.00028493,2]
[322182490,1712866247786,-562.27799089,0.00028514,2]
[322182491,1712866247795,-625.2098317,0.00028514,2]
[322182493,1712866247900,-360.86438748,0.00028514,2]
[322182495,1712866247953,-5566.47266521,0.00028514,2]
[322182497,1712866247963,-154.95351395,0.00028514,2]
[322182499,1712866247972,-154.95351395,0.00028514,2]
[322182501,1712866247981,-215.764455,0.00028514,2]
[322182503,1712866247990,-151.300064,0.00028514,2]
[322182505,1712866247999,-500.0,0.00028515,2]
[322182507,1712866248008,-1505.87,0.00028516,2]
[322182509,1712866248016,-500.0,0.00028516,2]
[322182511,1712866248025,-1381.4,0.00028516,2]
[322182513,1712866248034,-500.0,0.00028516,2]
[322182515,1712866248043,-500.0,0.00028516,2]
[322182517,1712866248053,-500.0,0.00028516,2]
[322182519,1712866248061,-500.0,0.00028516,2]
[322182521,1712866248070,-2308.11826266,0.00028667,2]
[322182523,1712866248079,-166.666666,0.00028679,2]
[322182525,1712866248088,-500.0,0.00028766,2]
[322182527,1712866248097,-871.23,0.00028767,2]
[322182529,1712866248106,-500.0,0.00028767,2]
[322182531,1712866248115,-500.0,0.00028767,2]
[322182533,1712866248125,-500.0,0.00028767,2]
[322182535,1712866248135,-151.0,0.00028767,2]
[322182537,1712866248144,-500.0,0.00028767,2]
[322182539,1712866248154,-500.0,0.00028767,2]
[322182541,1712866248163,-698.42,0.00028767,2]
[322182543,1712866248172,-500.0,0.00028767,2]
[322182545,1712866248181,-500.0,0.00028767,2]
[322182547,1712866248192,-506.55923473,0.00028767,2]
[322182549,1712866248202,-2010.11,0.00028767,2]
[322182551,1712866248211,-500.0,0.00028767,2]
[322182553,1712866248220,-500.0,0.00028767,2]
[322182555,1712866248229,-658.93,0.00028767,2]
[322182557,1712866248238,-500.0,0.00028767,2]
[322182559,1712866248247,-151.0,0.00028767,2]
[322182561,1712866248256,-500.0,0.00028767,2]
[322182563,1712866248265,-158.704444,0.00028767,2]
[322182565,1712866248274,-2120.41,0.00028767,2]
[322182566,1712866248283,-158.704444,0.00028767,2]
[322182568,1712866248292,-500.0,0.00028767,2]
[322182570,1712866248301,-507.22,0.00028767,2]
[322182572,1712866248314,-500.0,0.00028767,2]
[322182574,1712866248323,-335.771671,0.00028767,2]
[322182576,1712866248332,-500.0,0.00028767,2]
[322182578,1712866248341,-335.771671,0.00028767,2]
[322182580,1712866248351,-254.90994942,0.00028767,2]
[322182582,1712866248361,-151.0,0.00028767,2]
[322182584,1712866248370,-500.0,0.00028767,2]
[322182586,1712866248379,-500.0,0.00028767,2]
[322182588,1712866248389,-151.0,0.00028767,2]
[322182590,1712866248399,-151.0,0.00028767,2]
[322182592,1712866248408,-500.0,0.00028767,2]
[322182594,1712866248417,-151.0,0.00028767,2]
[322182596,1712866248426,-500.0,0.00028767,2]
[322182597,1712866248434,-500.0,0.00028767,2]
[322182600,1712866248444,-500.0,0.00028767,2]
[322182601,1712866248453,-500.0,0.00028767,2]
[322182603,1712866248462,-500.0,0.00028767,2]
[322182605,1712866248471,-473.52277473,0.00028767,2]
[322182607,1712866248480,-500.0,0.00028767,2]
[322182609,1712866248491,-500.0,0.00028767,2]
[322182611,1712866248500,-151.0,0.00028767,2]
[322182613,1712866248509,-614.88,0.00028767,2]
[322182615,1712866248519,-151.0,0.00028767,2]
[322182617,1712866248529,-151.0,0.00028767,2]
[322182619,1712866248539,-1148.88375831,0.00028767,2]
[322185941,1712866360405,154.82968734,0.00021915,2]
[322185942,1712866382395,154.89156354,0.00021914,2]
[322185948,1712866622079,24900.0,0.0002311,2]
[322185949,1712866676359,186.2489045,0.00023102,2]
[322185950,1712866735460,164.048687,0.00022822,2]
[322185954,1712866844471,1441.7639101,0.00023108,2]
[322185961,1712867088834,6877.752264,0.00023064,2]
[322185962,1712867113574,24900.0,0.00023062,2]
[322185963,1712867145158,-169.77525258,0.00024055,2]
[322185964,1712867165362,280.488685,0.00023215,2]
[322185966,1712867351197,-407.88528427,0.00024035,2]
[322185967,1712867351220,-5569.16345896,0.00024035,2]
[322185968,1712867351242,-1964.94666504,0.00024036,2]
[322185969,1712867351261,-154.82968734,0.00024037,2]
[322185970,1712867351282,-1087.73357907,0.00024037,2]
[322185971,1712867351301,-1308.15892502,0.00024037,2]
[322185972,1712867351323,-242.86748276,0.00024038,2]
[322185973,1712867351344,-300.0,0.00024038,2]
[322185974,1712867351365,-300.0,0.00024038,2]
[322185975,1712867351384,-181.13273271,0.00024039,2]
[322185976,1712867351403,-3719.84092639,0.00024039,2]
[322185977,1712867351423,-193.09908054,0.00024041,2]
[322185978,1712867351442,-300.0,0.00024049,2]
[322185979,1712867351461,-200.0,0.00024677,2]
[322185980,1712867351483,-1003.93734406,0.00025663,2]
[322185981,1712867351503,-690.14282945,0.00025763,2]
[322185982,1712867351524,-925.31693807,0.00026024,2]
[322185983,1712867351544,-420.0,0.00026067,2]
[322185984,1712867351566,-637.27668364,0.00026393,2]
[322185985,1712867351587,-420.0,0.00026442,2]
[322185986,1712867351608,-623.50714147,0.00027051,2]
[322185987,1712867353233,2998.53829537,0.00026023,2]
[322185988,1712867354191,-54856.02706404,0.00026023,2]
[322185989,1712867371118,-1044.864917,0.00026023,2]
[322185990,1712867371495,424.85112242,0.00023923,2]
[322185995,1712867412224,188.31719846,0.00023941,2]
[322186055,1712867432547,-160.38067631,0.00027294,2]
[322186057,1712867432559,-160.38067626,0.00027357,2]
[322186059,1712867432568,-425.32635225,0.00027392,2]
[322186347,1712867435584,718.58599389,0.00023941,2]
[322186444,1712867436726,304.99711456,0.00023941,2]
[322186808,1712867440467,-18.86391695,0.00027392,2]
[322186822,1712867440593,-3275.65065719,0.00027392,2]
[322186824,1712867440603,-300.0,0.00027393,2]
[322186826,1712867440613,-300.0,0.00027393,2]
[322186828,1712867440623,-272.01530939,0.00027394,2]
[322186830,1712867440633,-3734.12305776,0.00027394,2]
[322186832,1712867440643,-3292.64736883,0.00027394,2]
[322186834,1712867440653,-342.49538997,0.00027394,2]
[322186836,1712867440664,-1466.61272517,0.00027394,2]
[322186838,1712867440674,-22755.98720092,0.00027394,2]
[322186840,1712867440684,-207.18381603,0.00027394,2]
[322186842,1712867440693,-154.86062544,0.00027394,2]
[322186844,1712867440703,-2937.03373596,0.00027395,2]
[322186846,1712867440712,-490.67957045,0.00027395,2]
[322186848,1712867440722,-1913.39781028,0.00027395,2]
[322186850,1712867440732,-221.63830907,0.00027395,2]
[322186852,1712867440741,-623.90488631,0.00027395,2]
[322186854,1712867440750,-340.89846798,0.00027395,2]
[322186856,1712867440760,-155.80459589,0.00027396,2]
[322186858,1712867440770,-703.07725515,0.00027396,2]
[322186860,1712867440779,-1308.15892502,0.00027396,2]
[322186862,1712867440788,-242.74204017,0.00027396,2]
[322186864,1712867440797,-267.08067075,0.00027396,2]
[322186866,1712867440807,-500.0,0.00027397,2]
[322186868,1712867440817,-508.37236142,0.00027397,2]
[322186870,1712867440826,-347.84297722,0.00027397,2]
[322186872,1712867440837,-503.29201479,0.00027397,2]
[322186874,1712867440846,-500.0,0.00027397,2]
[322186876,1712867440855,-500.0,0.00027397,2]
[322186878,1712867440864,-506.30951657,0.00027397,2]
[322186880,1712867440873,-500.0,0.00027397,2]
[322186882,1712867440882,-511.51799614,0.00027397,2]
[322186884,1712867440891,-509.56425413,0.00027397,2]
[322186886,1712867440900,-500.0,0.00027397,2]
[322186888,1712867440909,-500.0,0.00027397,2]
[322186890,1712867440917,-500.0,0.00027397,2]
[322186892,1712867440930,-500.0,0.00027397,2]
[322186894,1712867440939,-500.0,0.00027397,2]
[322186896,1712867440949,-564.24993462,0.00027397,2]
[322186898,1712867440959,-500.0,0.00027397,2]
[322186900,1712867440968,-500.0,0.00027397,2]
[322186902,1712867440978,-500.0,0.00027397,2]
[322186903,1712867440987,-500.0,0.00027397,2]
[322186904,1712867440995,-506.19657006,0.00027397,2]
[322186905,1712867441004,-500.0,0.00027397,2]
[322186906,1712867441014,-300.0,0.00027397,2]
[322186907,1712867441023,-500.0,0.00027397,2]
[322186908,1712867441032,-423.09058609,0.00027397,2]
[322186909,1712867441041,-500.0,0.00027397,2]
[322186910,1712867441050,-331.51454962,0.00027397,2]
[322186911,1712867441059,-500.0,0.00027397,2]
[322186912,1712867441068,-500.0,0.00027397,2]
[322186913,1712867441077,-500.0,0.00027397,2]
[322186914,1712867441086,-500.0,0.00027397,2]
[322186915,1712867441095,-500.0,0.00027397,2]
[322186916,1712867441105,-583.87,0.00027397,2]
[322186917,1712867441114,-1977.45,0.00027397,2]
[322186918,1712867441123,-500.0,0.00027397,2]
[322186919,1712867441132,-500.0,0.00027397,2]
[322186920,1712867441142,-723.63,0.00027397,2]
[322186921,1712867441150,-500.0,0.00027397,2]
[322186923,1712867441159,-500.0,0.00027397,2]
[322186924,1712867441168,-500.0,0.00027397,2]
[322186926,1712867441178,-500.0,0.00027397,2]
[322186928,1712867441188,-500.0,0.00027397,2]
[322186930,1712867441197,-500.0,0.00027397,2]
[322186932,1712867441206,-500.0,0.00027397,2]
[322186934,1712867441216,-500.0,0.00027397,2]
[322186936,1712867441225,-500.0,0.00027397,2]
[322186938,1712867441234,-158.09608025,0.00027397,2]
[322186940,1712867441244,-459.32823551,0.00027397,2]
[322186942,1712867441256,-500.0,0.00027397,2]
[322186944,1712867441266,-516.65577381,0.00027397,2]
[322186947,1712867441275,-500.0,0.00027397,2]
[322186948,1712867441284,-500.0,0.00027397,2]
[322186951,1712867441295,-500.0,0.00027397,2]
[322186953,1712867441306,-542.88744001,0.00027397,2]
[322186955,1712867441315,-500.0,0.00027397,2]
[322186957,1712867441324,-500.0,0.00027397,2]
[322186958,1712867441333,-500.0,0.00027397,2]
[322186960,1712867441342,-689.72,0.00027397,2]
[322186962,1712867441351,-500.0,0.00027397,2]
[322186964,1712867441360,-500.0,0.00027397,2]
[322186966,1712867441369,-500.0,0.00027397,2]
[322186968,1712867441378,-500.0,0.00027397,2]
[322186970,1712867441387,-247.55776255,0.00027397,2]
[322186972,1712867441396,-500.0,0.00027397,2]
[322186974,1712867441406,-500.0,0.00027397,2]
[322186976,1712867441415,-500.0,0.00027397,2]
[322186978,1712867441423,-500.81267653,0.00027397,2]
[322186980,1712867441432,-500.0,0.00027397,2]
[322186982,1712867441441,-500.0,0.00027397,2]
[322186984,1712867441450,-1251.26,0.00027397,2]
[322186986,1712867441459,-500.0,0.00027397,2]
[322186988,1712867441469,-5892.86,0.00027397,2]
[322186990,1712867441478,-500.0,0.00027397,2]
[322186992,1712867441487,-500.0,0.00027397,2]
[322186994,1712867441496,-500.0,0.00027397,2]
[322186996,1712867441505,-500.0,0.00027397,2]
[322186998,1712867441514,-500.0,0.00027397,2]
[322187000,1712867441523,-500.0,0.00027397,2]
[322187002,1712867441532,-500.0,0.00027397,2]
[322187004,1712867441541,-500.0,0.00027397,2]
[322187006,1712867441552,-772.73,0.00027397,2]
[322187008,1712867441562,-750.17,0.00027397,2]
[322187010,1712867441572,-500.0,0.00027397,2]
[322187012,1712867441582,-500.0,0.00027397,2]
[322187015,1712867441591,-513.50932358,0.00027397,2]
[322187016,1712867441601,-696.16,0.00027397,2]
[322187018,1712867441612,-500.0,0.00027397,2]
[322187021,1712867441621,-1506.15,0.00027397,2]
[322187022,1712867441630,-500.0,0.00027397,2]
[322187024,1712867441639,-500.0,0.00027397,2]
[322187026,1712867441649,-2842.63,0.00027397,2]
[322187028,1712867441661,-500.0,0.00027397,2]
[322187031,1712867441671,-500.0,0.00027397,2]
[322187032,1712867441681,-500.0,0.00027397,2]
[322187034,1712867441690,-500.0,0.00027397,2]
[322187036,1712867441699,-2407.9,0.00027397,2]
[322187038,1712867441708,-505.17643698,0.00027397,2]
[322187040,1712867441717,-1378.3,0.00027397,2]
[322187042,1712867441727,-500.0,0.00027397,2]
[322187044,1712867441736,-658.0,0.00027397,2]
[322187046,1712867441793,-500.0,0.00027397,2]
[322187048,1712867441805,-1475.31,0.00027397,2]
[322187050,1712867441815,-532.52,0.00027397,2]
[322187053,1712867441827,-500.0,0.00027397,2]
[322187054,1712867441838,-500.0,0.00027397,2]
[322187056,1712867441848,-500.0,0.00027397,2]
[322187059,1712867441859,-500.0,0.00027397,2]
[322187061,1712867441873,-500.0,0.00027397,2]
[322187063,1712867441885,-500.0,0.00027397,2]
[322187065,1712867441895,-500.0,0.00027397,2]
[322187067,1712867441905,-790.7,0.00027397,2]
[322187069,1712867441916,-1126.99,0.00027397,2]
[322187071,1712867441925,-14188.64,0.00027397,2]
[322187073,1712867441936,-500.0,0.00027397,2]
[322187075,1712867441946,-562.37,0.00027397,2]
[322187077,1712867441955,-507.03594079,0.00027397,2]
[322187078,1712867441965,-500.0,0.00027397,2]
[322187080,1712867441977,-1047.96,0.00027397,2]
[322187082,1712867441990,-500.0,0.00027397,2]
[322187085,1712867442003,-913.31,0.00027397,2]
[322187086,1712867442013,-2800.25,0.00027397,2]
[322187088,1712867442024,-500.0,0.00027397,2]
[322187090,1712867442036,-500.0,0.00027397,2]
[322187101,1712867442132,-500.0,0.00027397,2]
[322187103,1712867442144,-500.0,0.00027397,2]
[322187105,1712867442154,-500.0,0.00027397,2]
[322187107,1712867442164,-500.0,0.00027397,2]
[322187109,1712867442174,-2184.49,0.00027397,2]
[322187111,1712867442184,-3888.25,0.00027397,2]
[322187113,1712867442194,-500.0,0.00027397,2]
[322187115,1712867442205,-500.0,0.00027397,2]
[322187117,1712867442214,-500.0,0.00027397,2]
[322187119,1712867442224,-500.0,0.00027397,2]
[322187121,1712867442235,-826.32,0.00027397,2]
[322187123,1712867442245,-500.0,0.00027397,2]
[322187125,1712867442255,-500.0,0.00027397,2]
[322187127,1712867442265,-500.0,0.00027397,2]
[322187129,1712867442275,-1103.84,0.00027397,2]
[322187131,1712867442286,-798.8,0.00027397,2]
[322187134,1712867442309,-534.21305419,0.00027397,2]
[322187137,1712867442320,-500.0,0.00027397,2]
[322187139,1712867442331,-1986.77,0.00027397,2]
[322187141,1712867442340,-500.0,0.00027397,2]
[322187143,1712867442351,-500.0,0.00027397,2]
[322187145,1712867442361,-500.0,0.00027397,2]
[322187147,1712867442370,-500.0,0.00027397,2]
[322187149,1712867442381,-166.666666,0.00027397,2]
[322187151,1712867442391,-160.38067626,0.00027421,2]
[322187153,1712867442401,-160.38067626,0.00027484,2]
[322187155,1712867442410,-160.38067626,0.00027548,2]
[322187157,1712867442419,-160.38067626,0.00027611,2]
[322187159,1712867442429,-500.0,0.0002767,2]
[322187161,1712867442438,-500.0,0.0002767,2]
[322187163,1712867442448,-500.0,0.0002767,2]
[322187165,1712867442457,-500.0,0.0002767,2]
[322187167,1712867442466,-1380.38,0.0002767,2]
[322187169,1712867442476,-500.0,0.0002767,2]
[322187171,1712867442485,-511.67115905,0.0002767,2]
[322187173,1712867442495,-500.0,0.0002767,2]
[322187175,1712867442504,-500.0,0.0002767,2]
[322187177,1712867442513,-500.0,0.0002767,2]
[322187179,1712867442523,-500.0,0.0002767,2]
[322187183,1712867442532,-1266.28,0.0002767,2]
[322187186,1712867442542,-500.0,0.0002767,2]
[322187189,1712867442552,-554.4450094,0.0002767,2]
[322187192,1712867442562,-500.0,0.0002767,2]
[322187194,1712867442571,-500.0,0.0002767,2]
[322187196,1712867442580,-500.0,0.0002767,2]
[322187198,1712867442590,-500.0,0.0002767,2]
[322187201,1712867442600,-500.0,0.0002767,2]
[322187204,1712867442610,-500.0,0.0002767,2]
[322187207,1712867442618,-11604.08,0.0002767,2]
[322187209,1712867442627,-582.07,0.0002767,2]
[322187213,1712867442637,-500.0,0.0002767,2]
[322187216,1712867442647,-500.0,0.0002767,2]
[322187218,1712867442656,-573.73,0.0002767,2]
[322187221,1712867442669,-615.72,0.0002767,2]
[322187224,1712867442679,-500.0,0.0002767,2]
[322187227,1712867442689,-500.0,0.00027671,2]
[322187230,1712867442698,-511.0966681,0.00027671,2]
[322187233,1712867442707,-500.0,0.00027671,2]
[322187236,1712867442717,-500.0,0.00027671,2]
[322187238,1712867442726,-500.0,0.00027671,2]
[322187241,1712867442737,-500.0,0.00027671,2]
[322187243,1712867442746,-370.34944153,0.00027671,2]
[322187245,1712867442756,-500.0,0.00027671,2]
[322187247,1712867442765,-505.052654,0.00027671,2]
[322187249,1712867442775,-500.0,0.00027671,2]
[322187251,1712867442784,-500.0,0.00027671,2]
[322187253,1712867442794,-300.0,0.00027671,2]
[322187255,1712867442804,-500.0,0.00027671,2]
[322187257,1712867442813,-500.0,0.00027671,2]
[322187259,1712867442822,-500.0,0.00027671,2]
[322187261,1712867442831,-500.0,0.00027671,2]
[322187263,1712867442841,-500.0,0.00027671,2]
[322187265,1712867442850,-500.0,0.00027671,2]
[322187267,1712867442859,-393.75733556,0.00027671,2]
[322187269,1712867442868,-583.87,0.00027671,2]
[322187271,1712867442877,-1977.45,0.00027671,2]
[322187273,1712867442887,-500.0,0.00027671,2]
[322187275,1712867442896,-500.0,0.00027671,2]
[322187277,1712867442905,-25.61912532,0.00027671,2]
[322187280,1712867442922,-698.01087468,0.00027671,2]
[322187282,1712867442931,-500.0,0.00027671,2]
[322187284,1712867442940,-500.0,0.00027671,2]
[322187286,1712867442949,-507.35814863,0.00027671,2]
[322187288,1712867442958,-520.80136545,0.00027671,2]
[322187290,1712867442967,-500.0,0.00027671,2]
[322187292,1712867442976,-500.0,0.00027671,2]
[322187294,1712867442985,-500.0,0.00027671,2]
[322187296,1712867442995,-500.0,0.00027671,2]
[322187298,1712867443006,-500.0,0.00027671,2]
[322187300,1712867443016,-339.91906213,0.00027671,2]
[322187302,1712867443024,-507.62225756,0.00027671,2]
[322187304,1712867443033,-270.35237407,0.00027671,2]
[322187306,1712867443043,-500.0,0.00027671,2]
[322187308,1712867443054,-369.48286751,0.00027671,2]
[322187310,1712867443063,-500.0,0.00027671,2]
[322187312,1712867443072,-500.0,0.00027671,2]
[322187314,1712867443081,-689.72,0.00027671,2]
[322187316,1712867443091,-500.0,0.00027671,2]
[322187318,1712867443101,-502.66621188,0.00027671,2]
[322187320,1712867443110,-500.0,0.00027671,2]
[322187322,1712867443121,-500.0,0.00027671,2]
[322187324,1712867443130,-500.0,0.00027671,2]
[322187326,1712867443140,-500.0,0.00027671,2]
[322187328,1712867443149,-500.0,0.00027671,2]
[322187330,1712867443159,-1251.26,0.00027671,2]
[322187332,1712867443168,-500.0,0.00027671,2]
[322187334,1712867443178,-5892.86,0.00027671,2]
[322187336,1712867443187,-500.0,0.00027671,2]
[322187338,1712867443198,-500.0,0.00027671,2]
[322187341,1712867443208,-500.0,0.00027671,2]
[322187343,1712867443218,-500.0,0.00027671,2]
[322187345,1712867443227,-500.0,0.00027671,2]
[322187347,1712867443237,-500.0,0.00027671,2]
[322187349,1712867443246,-772.73,0.00027671,2]
[322187351,1712867443255,-750.17,0.00027671,2]
[322187352,1712867443264,-500.0,0.00027671,2]
[322187355,1712867443274,-500.0,0.00027671,2]
[322187357,1712867443285,-696.16,0.00027671,2]
[322187360,1712867443293,-500.0,0.00027671,2]
[322187361,1712867443303,-1506.15,0.00027671,2]
[322187364,1712867443312,-500.0,0.00027671,2]
[322187365,1712867443322,-500.0,0.00027671,2]
[322187367,1712867443331,-2842.63,0.00027671,2]
[322187369,1712867443341,-500.0,0.00027671,2]
[322187371,1712867443350,-500.0,0.00027671,2]
[322187373,1712867443361,-505.25227763,0.00027671,2]
[322187376,1712867443371,-2407.9,0.00027671,2]
[322187378,1712867443381,-1378.3,0.00027671,2]
[322187380,1712867443390,-500.0,0.00027671,2]
[322187382,1712867443400,-658.0,0.00027671,2]
[322187384,1712867443408,-500.0,0.00027671,2]
[322187386,1712867443418,-1475.31,0.00027671,2]
[322187388,1712867443427,-532.52,0.00027671,2]
[322187390,1712867443435,-500.0,0.00027671,2]
[322187392,1712867443444,-500.0,0.00027671,2]
[322187394,1712867443454,-500.0,0.00027671,2]
[322187396,1712867443463,-500.0,0.00027671,2]
[322187398,1712867443472,-500.0,0.00027671,2]
[322187400,1712867443482,-502.75836769,0.00027671,2]
[322187402,1712867443491,-790.7,0.00027671,2]
[322187403,1712867443500,-1126.99,0.00027671,2]
[322187405,1712867443509,-14188.64,0.00027671,2]
[322187407,1712867443519,-500.0,0.00027671,2]
[322187409,1712867443528,-562.37,0.00027671,2]
[322187411,1712867443538,-500.0,0.00027671,2]
[322187414,1712867443548,-1047.96,0.00027671,2]
[322187416,1712867443558,-500.0,0.00027671,2]
[322187417,1712867443569,-913.31,0.00027671,2]
[322187419,1712867443578,-2800.25,0.00027671,2]
[322187421,1712867443587,-500.0,0.00027671,2]
[322187422,1712867443596,-323.1381622,0.00027671,2]
[322187539,1712867444746,-1284.9067323,0.00027396,2]
[322189841,1712868547138,-211.50234221,0.00024162,2]
[322189842,1712868547161,-280.488685,0.00024163,2]
[322189843,1712868547181,-172.568919,0.00024763,2]
[322189844,1712868549134,-3719.84092639,0.00025057,2]
[322189845,1712868549154,-300.0,0.00025058,2]
[322189846,1712868549174,-300.0,0.00025058,2]
[322189847,1712868549194,-10611.3378454,0.00025059,2]
[322189848,1712868549214,-171.815789,0.00025166,2]
[322189849,1712868549235,-24900.0,0.00025369,2]
[322189850,1712868549255,-909.31717657,0.00025471,2]
[322189851,1712868549275,-333.23408162,0.00025571,2]
[322189852,1712868549295,-160.38067626,0.00026261,2]
[322189853,1712868549315,-785.18771344,0.00026362,2]
[322189854,1712868549337,-160.38067626,0.00026405,2]
[322189855,1712868549359,-623.90488631,0.00026462,2]
[322189856,1712868549383,-242.74204017,0.00026462,2]
[322189857,1712868549406,-2937.03373596,0.00026462,2]
[322189858,1712868549429,-1913.39781028,0.00026462,2]
[322189859,1712868549450,-207.18381603,0.00026462,2]
[322189860,1712868549470,-155.80459589,0.00026462,2]
[322189861,1712868549490,-154.86062544,0.00026462,2]
[322189862,1712868549510,-342.49538997,0.00026462,2]
[322189863,1712868549530,-11376.76213237,0.00026462,2]
[322189864,1712868550112,-3397.79789234,0.00026462,2]
[322189865,1712868553107,-7981.42717621,0.00026462,2]
[322189866,1712868553131,-1466.61272517,0.00026462,2]
[322189867,1712868553159,-3292.64736883,0.00026462,2]
[322189868,1712868553305,-3734.12305776,0.00026462,2]
[322189869,1712868553330,-272.01530939,0.00026462,2]
[322189870,1712868553352,-25217.36132649,0.00026463,2]
[322189871,1712868553373,-160.38067626,0.00026549,2]
[322189872,1712868553395,-160.38067626,0.00026693,2]
[322189873,1712868553418,-160.38067626,0.00026837,2]
[322189874,1712868553443,-160.38067626,0.00026981,2]
[322189875,1712868553467,-160.38067626,0.00027125,2]
[322189876,1712868553492,-420.0,0.00027145,2]
[322189877,1712868553513,-158.00341827,0.00027269,2]
[322189878,1712868573705,2959.360188,0.00026401,2]
[322189879,1712868573726,2989.04649208,0.00026401,2]
[322189880,1712868578250,222.15605441,0.00024363,2]